[Event "Late-Titled-Tuesday-Blitz-December-26-2023"]
[Site "Chess.com"]
[Date "2023.12.26"]
[Round "5"]
[White "enriquetejedor"]
[Black "vugarrasulov"]
[Result "0-1"]
[WhiteElo "2750"]
[BlackElo "2925"]
[TimeControl "180+1"]
[EndTime "14:55:43 PST"]
[Termination "vugarrasulov won by resignation"]

1. c4 {[%clk 0:02:59.7]} 1... g6 {[%clk 0:02:58.8]} 2. Nc3 {[%clk 0:02:59.7]}
2... Bg7 {[%clk 0:02:59.4]} 3. g3 {[%clk 0:02:59.3]} 3... h5 {[%clk 0:02:57]} 4.
h4 {[%clk 0:02:58.7]} 4... Nf6 {[%clk 0:02:56.7]} 5. Bg2 {[%clk 0:02:59.6]} 5...
O-O {[%clk 0:02:56.9]} 6. Nf3 {[%clk 0:02:59]} 6... d6 {[%clk 0:02:56.3]} 7. O-O
{[%clk 0:02:59.9]} 7... e5 {[%clk 0:02:52.9]} 8. d3 {[%clk 0:02:59.5]} 8... Nc6
{[%clk 0:02:49.4]} 9. Rb1 {[%clk 0:02:58.9]} 9... a5 {[%clk 0:02:48.3]} 10. a3
{[%clk 0:02:59.2]} 10... Bg4 {[%clk 0:02:46.9]} 11. Ng5 {[%clk 0:02:58]} 11...
Qd7 {[%clk 0:02:28.9]} 12. Qd2 {[%clk 0:02:52.7]} 12... Nd4 {[%clk 0:02:20]} 13.
b3 {[%clk 0:02:49.9]} 13... c6 {[%clk 0:02:19]} 14. e3 {[%clk 0:02:48.2]} 14...
Nf5 {[%clk 0:02:08.7]} 15. f3 {[%clk 0:02:47.5]} 15... Nxg3 {[%clk 0:02:07.9]}
16. fxg4 {[%clk 0:02:44.3]} 16... Nxf1 {[%clk 0:02:08.2]} 17. Bxf1 {[%clk
0:02:38.6]} 17... Qxg4+ {[%clk 0:02:06]} 18. Qg2 {[%clk 0:02:38.3]} 18... Qxh4
{[%clk 0:02:03.7]} 19. Nf3 {[%clk 0:02:30]} 19... Qg4 {[%clk 0:02:03.1]} 20.
Qxg4 {[%clk 0:02:26.4]} 20... Nxg4 {[%clk 0:02:02.7]} 21. Ne4 {[%clk 0:02:24.5]}
21... d5 {[%clk 0:01:57.6]} 22. Nf2 {[%clk 0:02:23.4]} 22... Rae8 {[%clk
0:01:44.3]} 23. Bh3 {[%clk 0:02:11.8]} 23... f5 {[%clk 0:01:43.8]} 24. Nh4
{[%clk 0:01:51.4]} 24... Kh7 {[%clk 0:01:42.4]} 25. Bd2 {[%clk 0:01:47.9]} 25...
Bh6 {[%clk 0:01:37.3]} 26. Ng2 {[%clk 0:01:44.4]} 26... d4 {[%clk 0:01:31.2]}
27. Re1 {[%clk 0:01:40.6]} 27... Nxf2 {[%clk 0:01:23.1]} 28. Kxf2 {[%clk
0:01:41.5]} 28... g5 {[%clk 0:01:19]} 29. exd4 {[%clk 0:01:37.4]} 29... g4
{[%clk 0:01:19.3]} 30. Bxh6 {[%clk 0:01:35.8]} 30... Kxh6 {[%clk 0:01:20.2]} 31.
dxe5 {[%clk 0:01:35.3]} 31... f4 {[%clk 0:01:15.5]} 32. Nh4 {[%clk 0:01:27]}
32... gxh3 {[%clk 0:01:05.8]} 33. d4 {[%clk 0:01:27.1]} 33... f3 {[%clk
0:01:01.4]} 34. Rh1 {[%clk 0:00:58.7]} 34... c5 {[%clk 0:00:56.9]} 35. dxc5
{[%clk 0:00:44]} 35... Rxe5 {[%clk 0:00:56.6]} 36. Nxf3 {[%clk 0:00:44.5]} 36...
Rxc5 {[%clk 0:00:52.4]} 37. Rxh3 {[%clk 0:00:43.6]} 37... a4 {[%clk 0:00:52.8]}
38. bxa4 {[%clk 0:00:34.3]} 38... Rxc4 {[%clk 0:00:53.2]} 39. a5 {[%clk
0:00:28.2]} 39... Rc2+ {[%clk 0:00:51.1]} 40. Ke3 {[%clk 0:00:21.4]} 40... Rc3+
{[%clk 0:00:51.4]} 41. Ke4 {[%clk 0:00:21.4]} 41... Rxa3 {[%clk 0:00:50.6]} 42.
Rg3 {[%clk 0:00:20.7]} 42... Ra4+ {[%clk 0:00:45.7]} 43. Ke3 {[%clk 0:00:16.7]}
43... Rxa5 {[%clk 0:00:46]} 44. Ne1 {[%clk 0:00:04]} 44... Ra3+ {[%clk
0:00:45.9]} 45. Nd3 {[%clk 0:00:03.8]} 45... Rd8 {[%clk 0:00:45.4]} 46. Ke4
{[%clk 0:00:02.8]} 46... Raxd3 {[%clk 0:00:45.5]} 47. Rg1 {[%clk 0:00:01.5]}
47... R3d4+ {[%clk 0:00:44.3]} 48. Kf5 {[%clk 0:00:01.9]} 48... Rf8+ {[%clk
0:00:42.4]} 49. Ke5 {[%clk 0:00:01.9]} 49... Rg4 {[%clk 0:00:43.1]} 50. Rb1
{[%clk 0:00:02]} 50... Kg5 {[%clk 0:00:40.3]} 51. Rxb7 {[%clk 0:00:01.9]} 51...
Rf5+ {[%clk 0:00:40.8]} 52. Ke6 {[%clk 0:00:01.8]} 52... Re4+ {[%clk 0:00:41.4]}
53. Kd6 {[%clk 0:00:02.2]} 53... h4 {[%clk 0:00:41.3]} 54. Rg7+ {[%clk
0:00:02.5]} 54... Kh6 {[%clk 0:00:41.5]} 55. Rg1 {[%clk 0:00:02.2]} 55... h3
{[%clk 0:00:41.2]} 56. Rg8 {[%clk 0:00:02.4]} 56... Kh7 {[%clk 0:00:36.8]} 57.
Rg3 {[%clk 0:00:01.9]} 57... Rh4 {[%clk 0:00:37.1]} 58. Rg1 {[%clk 0:00:01.9]}
58... h2 {[%clk 0:00:37.5]} 59. Rh1 {[%clk 0:00:02]} 59... Rh6+ {[%clk
0:00:37.4]} 60. Ke7 {[%clk 0:00:01.9]} 60... Ra5 {[%clk 0:00:35.6]} 61. Kd8
{[%clk 0:00:01.8]} 61... Ra7 {[%clk 0:00:35.2]} 62. Kc8 {[%clk 0:00:01.9]} 62...
Rg7 {[%clk 0:00:34.8]} 63. Kd8 {[%clk 0:00:01.7]} 63... Rg1 {[%clk 0:00:34.5]}
64. Rxh2 {[%clk 0:00:01.2]} 64... Rxh2 {[%clk 0:00:34.3]} 0-1

[Event "Late-Titled-Tuesday-Blitz-December-26-2023"]
[Site "Chess.com"]
[Date "2023.12.26"]
[Round "5"]
[White "lucliasco"]
[Black "ccccvhhhj"]
[Result "0-1"]
[WhiteElo "2884"]
[BlackElo "2499"]
[TimeControl "180+1"]
[EndTime "14:55:47 PST"]
[Termination "ccccvhhhj won by checkmate"]

1. e4 {[%clk 0:02:50.1]} 1... e6 {[%clk 0:03:00]} 2. Nf3 {[%clk 0:02:43.5]} 2...
d5 {[%clk 0:03:00.9]} 3. Nc3 {[%clk 0:02:44.2]} 3... Nf6 {[%clk 0:03:00.7]} 4.
e5 {[%clk 0:02:43.1]} 4... Nfd7 {[%clk 0:03:01.2]} 5. d4 {[%clk 0:02:44]} 5...
c5 {[%clk 0:03:01.8]} 6. dxc5 {[%clk 0:02:42.1]} 6... Bxc5 {[%clk 0:03:01.2]} 7.
Bd3 {[%clk 0:02:42.4]} 7... Nc6 {[%clk 0:03:00.1]} 8. Bf4 {[%clk 0:02:41.5]}
8... Be7 {[%clk 0:02:56]} 9. O-O {[%clk 0:02:40.6]} 9... g5 {[%clk 0:02:50.8]}
10. Be3 {[%clk 0:02:37.7]} 10... Ndxe5 {[%clk 0:02:40.6]} 11. Nxe5 {[%clk
0:02:33.8]} 11... Nxe5 {[%clk 0:02:41.5]} 12. Bd4 {[%clk 0:02:34.7]} 12... Bf6
{[%clk 0:02:31.2]} 13. Bb5+ {[%clk 0:02:33.7]} 13... Kf8 {[%clk 0:02:09.7]} 14.
f4 {[%clk 0:02:25]} 14... Ng6 {[%clk 0:01:53.8]} 15. f5 {[%clk 0:01:58.9]} 15...
exf5 {[%clk 0:01:26.7]} 16. Nxd5 {[%clk 0:01:56.4]} 16... Bxd4+ {[%clk
0:01:09.2]} 17. Qxd4 {[%clk 0:01:57.3]} 17... Be6 {[%clk 0:01:08.3]} 18. c4
{[%clk 0:01:51]} 18... a6 {[%clk 0:00:47.6]} 19. Ba4 {[%clk 0:01:50.4]} 19... b5
{[%clk 0:00:47.3]} 20. Bb3 {[%clk 0:01:45.8]} 20... bxc4 {[%clk 0:00:47.1]} 21.
Bxc4 {[%clk 0:01:46.7]} 21... Rc8 {[%clk 0:00:37.6]} 22. Bb3 {[%clk 0:01:36.4]}
22... Qd6 {[%clk 0:00:26]} 23. Rad1 {[%clk 0:00:49.6]} 23... Qc5 {[%clk
0:00:20.7]} 24. Qxc5+ {[%clk 0:00:44.9]} 24... Rxc5 {[%clk 0:00:21.6]} 25. Nb4
{[%clk 0:00:45.7]} 25... a5 {[%clk 0:00:17.1]} 26. Nd3 {[%clk 0:00:43.6]} 26...
Rc8 {[%clk 0:00:13.3]} 27. Rfe1 {[%clk 0:00:35.3]} 27... Bxb3 {[%clk 0:00:10.8]}
28. axb3 {[%clk 0:00:36.2]} 28... Kg7 {[%clk 0:00:07.7]} 29. Ra1 {[%clk
0:00:36.1]} 29... Ra8 {[%clk 0:00:07.2]} 30. Nc5 {[%clk 0:00:35.3]} 30... Nf4
{[%clk 0:00:06.5]} 31. Nb7 {[%clk 0:00:32.9]} 31... Rhb8 {[%clk 0:00:03.7]} 32.
Nxa5 {[%clk 0:00:27.8]} 32... Rb5 {[%clk 0:00:04]} 33. Nc4 {[%clk 0:00:26.3]}
33... Rxa1 {[%clk 0:00:04.9]} 34. Rxa1 {[%clk 0:00:26.2]} 34... Rxb3 {[%clk
0:00:05.5]} 35. Ra5 {[%clk 0:00:20.1]} 35... Rb4 {[%clk 0:00:05.8]} 36. Rc5
{[%clk 0:00:16.4]} 36... Ne6 {[%clk 0:00:04.2]} 37. Rc8 {[%clk 0:00:15.6]} 37...
f4 {[%clk 0:00:02.6]} 38. h3 {[%clk 0:00:16]} 38... h5 {[%clk 0:00:02.5]} 39.
Rc6 {[%clk 0:00:14.8]} 39... Ra4 {[%clk 0:00:02.4]} 40. Rc8 {[%clk 0:00:13.2]}
40... Ra1+ {[%clk 0:00:03.3]} 41. Kh2 {[%clk 0:00:13.7]} 41... Kf6 {[%clk
0:00:04]} 42. Nd2 {[%clk 0:00:13.6]} 42... g4 {[%clk 0:00:03.3]} 43. hxg4 {[%clk
0:00:13.1]} 43... hxg4 {[%clk 0:00:04.2]} 44. g3 {[%clk 0:00:12.1]} 44... Rd1
{[%clk 0:00:03.9]} 45. Ne4+ {[%clk 0:00:12.2]} 45... Kf5 {[%clk 0:00:04.4]} 46.
Nf2 {[%clk 0:00:10.4]} 46... Rd2 {[%clk 0:00:04.5]} 47. Kg1 {[%clk 0:00:11]}
47... fxg3 {[%clk 0:00:04.4]} 48. Nh1 {[%clk 0:00:11.7]} 48... Kf4 {[%clk
0:00:03.8]} 49. Rc4+ {[%clk 0:00:11.5]} 49... Kf3 {[%clk 0:00:03]} 50. Rc3+
{[%clk 0:00:11.6]} 50... Kf4 {[%clk 0:00:03.5]} 51. Nxg3 {[%clk 0:00:12.3]}
51... Rxb2 {[%clk 0:00:03.9]} 52. Nf1 {[%clk 0:00:12.4]} 52... Ng5 {[%clk
0:00:03.4]} 53. Rc4+ {[%clk 0:00:12.8]} 53... Kf5 {[%clk 0:00:03.8]} 54. Rc5+
{[%clk 0:00:12]} 54... Kg6 {[%clk 0:00:03.8]} 55. Rc4 {[%clk 0:00:11.9]} 55...
Nf3+ {[%clk 0:00:04.7]} 56. Kh1 {[%clk 0:00:12.5]} 56... f5 {[%clk 0:00:05.6]}
57. Rc8 {[%clk 0:00:12.4]} 57... Rf2 {[%clk 0:00:06.2]} 58. Ng3 {[%clk
0:00:11.9]} 58... Rh2# {[%clk 0:00:05.9]} 0-1

[Event "Late-Titled-Tuesday-Blitz-December-26-2023"]
[Site "Chess.com"]
[Date "2023.12.26"]
[Round "5"]
[White "chessajedrezz2020"]
[Black "wild3000"]
[Result "1-0"]
[WhiteElo "2781"]
[BlackElo "2470"]
[TimeControl "180+1"]
[EndTime "14:55:52 PST"]
[Termination "chessajedrezz2020 won by checkmate"]

1. Nf3 {[%clk 0:02:59.5]} 1... d5 {[%clk 0:02:46.3]} 2. d4 {[%clk 0:02:55.6]}
2... Nf6 {[%clk 0:02:45.9]} 3. c4 {[%clk 0:02:55.9]} 3... c6 {[%clk 0:02:45.5]}
4. Nc3 {[%clk 0:02:54.7]} 4... g6 {[%clk 0:02:44.5]} 5. Bf4 {[%clk 0:02:47.6]}
5... Bg7 {[%clk 0:02:44.3]} 6. e3 {[%clk 0:02:47.7]} 6... O-O {[%clk 0:02:44.1]}
7. Qb3 {[%clk 0:02:47.9]} 7... dxc4 {[%clk 0:02:35.8]} 8. Bxc4 {[%clk
0:02:47.1]} 8... Nbd7 {[%clk 0:02:35.9]} 9. Ne5 {[%clk 0:02:42.4]} 9... Nxe5
{[%clk 0:02:34.5]} 10. Bxe5 {[%clk 0:02:40.8]} 10... Nd7 {[%clk 0:02:34.5]} 11.
Bxg7 {[%clk 0:02:27.2]} 11... Kxg7 {[%clk 0:02:35.4]} 12. O-O {[%clk 0:02:26]}
12... Nb6 {[%clk 0:02:35.3]} 13. Be2 {[%clk 0:02:19.6]} 13... Be6 {[%clk
0:02:34.8]} 14. Qc2 {[%clk 0:02:18.9]} 14... Bc4 {[%clk 0:02:31.8]} 15. Bxc4
{[%clk 0:02:05.9]} 15... Nxc4 {[%clk 0:02:32.7]} 16. Ne4 {[%clk 0:02:04.4]}
16... Nd6 {[%clk 0:02:31.7]} 17. Nc5 {[%clk 0:02:03.5]} 17... b6 {[%clk
0:02:31.6]} 18. Nd3 {[%clk 0:02:02.5]} 18... Rc8 {[%clk 0:02:30.3]} 19. Rfc1
{[%clk 0:02:00.4]} 19... h5 {[%clk 0:02:19]} 20. b4 {[%clk 0:01:55.5]} 20... h4
{[%clk 0:02:10]} 21. h3 {[%clk 0:01:55.6]} 21... Nf5 {[%clk 0:02:08.2]} 22. Qa4
{[%clk 0:01:39]} 22... Nd6 {[%clk 0:01:28.8]} 23. Rxc6 {[%clk 0:01:17.7]} 23...
b5 {[%clk 0:01:28.8]} 24. Qa6 {[%clk 0:01:08.7]} 24... Rxc6 {[%clk 0:01:20.1]}
25. Qxc6 {[%clk 0:01:08.5]} 25... Qb8 {[%clk 0:01:19.4]} 26. Nc5 {[%clk
0:01:00.6]} 26... Rc8 {[%clk 0:01:17.5]} 27. Qd5 {[%clk 0:00:58.3]} 27... Nc4
{[%clk 0:01:08.8]} 28. Qe4 {[%clk 0:00:24.7]} 28... e5 {[%clk 0:01:01.3]} 29.
Qxh4 {[%clk 0:00:22]} 29... Rh8 {[%clk 0:00:52.8]} 30. Qe7 {[%clk 0:00:17.4]}
30... Re8 {[%clk 0:00:38]} 31. Qh4 {[%clk 0:00:17.2]} 31... Qd6 {[%clk
0:00:30.4]} 32. Qg3 {[%clk 0:00:17.2]} 32... Qf6 {[%clk 0:00:25.2]} 33. Rd1
{[%clk 0:00:14.8]} 33... Qe7 {[%clk 0:00:18.6]} 34. d5 {[%clk 0:00:12.2]} 34...
a5 {[%clk 0:00:14.8]} 35. Ne4 {[%clk 0:00:06.9]} 35... axb4 {[%clk 0:00:13.1]}
36. d6 {[%clk 0:00:07]} 36... Qe6 {[%clk 0:00:11.8]} 37. Nc5 {[%clk 0:00:06.3]}
37... Qf5 {[%clk 0:00:10.1]} 38. d7 {[%clk 0:00:06.1]} 38... Rd8 {[%clk
0:00:10.3]} 39. Qg4 {[%clk 0:00:05.3]} 39... Qxg4 {[%clk 0:00:09.3]} 40. hxg4
{[%clk 0:00:06.2]} 40... Nb6 {[%clk 0:00:09.3]} 41. Rd6 {[%clk 0:00:05.8]} 41...
Nc4 {[%clk 0:00:07.1]} 42. Nb7 {[%clk 0:00:04.5]} 42... Nxd6 {[%clk 0:00:04.7]}
43. Nxd8 {[%clk 0:00:05.1]} 43... Kf8 {[%clk 0:00:04.5]} 44. Ne6+ {[%clk
0:00:04.9]} 44... Ke7 {[%clk 0:00:02.4]} 45. d8=Q+ {[%clk 0:00:05.1]} 45... Kxe6
{[%clk 0:00:03.3]} 46. Qb6 {[%clk 0:00:05.7]} 46... Kd5 {[%clk 0:00:03.1]} 47.
Qc7 {[%clk 0:00:06]} 47... b3 {[%clk 0:00:03.3]} 48. axb3 {[%clk 0:00:05.8]}
48... Ne4 {[%clk 0:00:03.3]} 49. Qxf7+ {[%clk 0:00:05.7]} 49... Kc5 {[%clk
0:00:02.9]} 50. Qxg6 {[%clk 0:00:06.6]} 50... Nc3 {[%clk 0:00:02.9]} 51. Qc2
{[%clk 0:00:06.4]} 51... Kb4 {[%clk 0:00:03.8]} 52. g5 {[%clk 0:00:06.7]} 52...
e4 {[%clk 0:00:04.1]} 53. g6 {[%clk 0:00:06.8]} 53... Nd5 {[%clk 0:00:05]} 54.
g7 {[%clk 0:00:06.8]} 54... Ne7 {[%clk 0:00:05.9]} 55. Qxe4+ {[%clk 0:00:06.8]}
55... Kc5 {[%clk 0:00:05.3]} 56. Qxe7+ {[%clk 0:00:07.7]} 56... Kb6 {[%clk
0:00:05.9]} 57. g8=Q {[%clk 0:00:08]} 57... Ka5 {[%clk 0:00:06.8]} 58. Qa8+
{[%clk 0:00:08.1]} 58... Kb6 {[%clk 0:00:06.6]} 59. Qea7# {[%clk 0:00:08.6]} 1-0

[Event "Late-Titled-Tuesday-Blitz-December-26-2023"]
[Site "Chess.com"]
[Date "2023.12.26"]
[Round "5"]
[White "youngdinousaur"]
[Black "topce"]
[Result "1-0"]
[WhiteElo "2306"]
[BlackElo "2394"]
[TimeControl "180+1"]
[EndTime "14:55:52 PST"]
[Termination "youngdinousaur won by resignation"]

1. d4 {[%clk 0:03:00.9]} 1... Nf6 {[%clk 0:02:59.2]} 2. Nf3 {[%clk 0:03:01.4]}
2... c5 {[%clk 0:02:57.9]} 3. d5 {[%clk 0:03:01.1]} 3... g6 {[%clk 0:02:57.6]}
4. Nc3 {[%clk 0:03:01.3]} 4... Bg7 {[%clk 0:02:57.3]} 5. e4 {[%clk 0:03:01.6]}
5... O-O {[%clk 0:02:53.1]} 6. Be2 {[%clk 0:02:47.5]} 6... e6 {[%clk 0:02:50.7]}
7. O-O {[%clk 0:02:46.2]} 7... exd5 {[%clk 0:02:50.4]} 8. exd5 {[%clk 0:02:47]}
8... d6 {[%clk 0:02:49.8]} 9. Nd2 {[%clk 0:02:39.4]} 9... a6 {[%clk 0:02:49.2]}
10. a4 {[%clk 0:02:39.1]} 10... Nbd7 {[%clk 0:02:48.3]} 11. Nc4 {[%clk 0:02:38]}
11... Ne5 {[%clk 0:02:47.3]} 12. Nxe5 {[%clk 0:02:09]} 12... dxe5 {[%clk
0:02:47.1]} 13. a5 {[%clk 0:02:09.4]} 13... Bf5 {[%clk 0:02:43.5]} 14. Be3
{[%clk 0:02:05.1]} 14... Rc8 {[%clk 0:02:42.2]} 15. Qd2 {[%clk 0:02:01.2]} 15...
Ne8 {[%clk 0:02:35.4]} 16. Rfd1 {[%clk 0:01:55.2]} 16... Nd6 {[%clk 0:02:34.8]}
17. b3 {[%clk 0:01:46.7]} 17... Bd7 {[%clk 0:02:26.3]} 18. Ra2 {[%clk
0:01:42.1]} 18... f5 {[%clk 0:02:19.4]} 19. Bh6 {[%clk 0:01:36.5]} 19... Bxh6
{[%clk 0:02:14.9]} 20. Qxh6 {[%clk 0:01:37.4]} 20... Qf6 {[%clk 0:02:14.8]} 21.
Bc4 {[%clk 0:01:24.5]} 21... e4 {[%clk 0:02:08.4]} 22. Na4 {[%clk 0:01:23.8]}
22... Bxa4 {[%clk 0:02:02.4]} 23. Rxa4 {[%clk 0:01:22.7]} 23... Rce8 {[%clk
0:01:55.6]} 24. Qd2 {[%clk 0:01:04]} 24... f4 {[%clk 0:01:53.4]} 25. Raa1 {[%clk
0:00:46]} 25... e3 {[%clk 0:01:42.1]} 26. fxe3 {[%clk 0:00:32.5]} 26... fxe3
{[%clk 0:01:36.6]} 27. Qe2 {[%clk 0:00:32.7]} 27... Qe5 {[%clk 0:01:28.9]} 28.
Rf1 {[%clk 0:00:31.9]} 28... Rf2 {[%clk 0:01:27.7]} 29. Qg4 {[%clk 0:00:16]}
29... Nf5 {[%clk 0:01:05.7]} 30. Rae1 {[%clk 0:00:13.2]} 30... Kg7 {[%clk
0:00:57.4]} 31. Bd3 {[%clk 0:00:09.6]} 31... Nd4 {[%clk 0:00:43.2]} 32. Qd7+
{[%clk 0:00:09.5]} 32... Re7 {[%clk 0:00:42.4]} 33. Qg4 {[%clk 0:00:07.5]} 33...
Ref7 {[%clk 0:00:40.1]} 34. h4 {[%clk 0:00:04.9]} 34... R7f4 {[%clk 0:00:29.3]}
35. Qg5 {[%clk 0:00:04.2]} 35... Nf5 {[%clk 0:00:17]} 36. Qd8 {[%clk 0:00:02.9]}
36... Qxd5 {[%clk 0:00:15.5]} 37. Qxd5 {[%clk 0:00:02.4]} 37... Ng3 {[%clk
0:00:14.6]} 38. Kh2 {[%clk 0:00:01.3]} 38... Nxf1+ {[%clk 0:00:14.3]} 39. Rxf1
{[%clk 0:00:02.2]} 39... Rxf1 {[%clk 0:00:14.9]} 40. Bxf1 {[%clk 0:00:03.1]}
40... Rxf1 {[%clk 0:00:15.2]} 41. Qe5+ {[%clk 0:00:03.7]} 41... Rf6 {[%clk
0:00:15.9]} 42. Qxe3 {[%clk 0:00:04.6]} 42... h5 {[%clk 0:00:15.7]} 43. Qxc5
{[%clk 0:00:05.1]} 43... Rf7 {[%clk 0:00:15.8]} 44. Qd6 {[%clk 0:00:05.3]} 44...
Rf5 {[%clk 0:00:16.3]} 45. Qe7+ {[%clk 0:00:05.4]} 45... Rf7 {[%clk 0:00:17.2]}
46. Qe5+ {[%clk 0:00:06.1]} 46... Kg8 {[%clk 0:00:17.4]} 47. g3 {[%clk 0:00:07]}
47... Rf5 {[%clk 0:00:17.4]} 48. Qe6+ {[%clk 0:00:06.7]} 48... Rf7 {[%clk
0:00:18.3]} 49. Qc8+ {[%clk 0:00:07.3]} 49... Kg7 {[%clk 0:00:19.1]} 50. Qb8
{[%clk 0:00:07.5]} 50... Kh7 {[%clk 0:00:19]} 51. Qe5 {[%clk 0:00:08.4]} 51...
Kg8 {[%clk 0:00:18.8]} 52. Qd5 {[%clk 0:00:08.9]} 52... Kg7 {[%clk 0:00:19.7]}
53. c4 {[%clk 0:00:09.4]} 53... Kg8 {[%clk 0:00:20.6]} 54. b4 {[%clk 0:00:10]}
54... Kg7 {[%clk 0:00:21.2]} 55. b5 {[%clk 0:00:10.5]} 55... Rf2+ {[%clk
0:00:20.4]} 56. Kh3 {[%clk 0:00:10.4]} 56... Rf7 {[%clk 0:00:19.5]} 57. Qe5+
{[%clk 0:00:10.3]} 57... Kg8 {[%clk 0:00:19.3]} 58. bxa6 {[%clk 0:00:10.9]}
58... bxa6 {[%clk 0:00:19.2]} 59. c5 {[%clk 0:00:11.4]} 59... Rf5 {[%clk
0:00:19.2]} 60. Qe6+ {[%clk 0:00:11.4]} 60... Kg7 {[%clk 0:00:19.1]} 61. Qxa6
{[%clk 0:00:11.8]} 61... Rxc5 {[%clk 0:00:19.1]} 62. Qb6 {[%clk 0:00:12.4]}
62... Kh6 {[%clk 0:00:19.7]} 63. Qxc5 {[%clk 0:00:12.2]} 63... g5 {[%clk
0:00:19.9]} 64. Qxg5+ {[%clk 0:00:11.2]} 1-0

[Event "Late-Titled-Tuesday-Blitz-December-26-2023"]
[Site "Chess.com"]
[Date "2023.12.26"]
[Round "5"]
[White "sheldons73tshirt"]
[Black "ChristopherYoo"]
[Result "1-0"]
[WhiteElo "2684"]
[BlackElo "2961"]
[TimeControl "180+1"]
[EndTime "14:55:55 PST"]
[Termination "sheldons73tshirt won by checkmate"]

1. e4 {[%clk 0:02:59.4]} 1... e6 {[%clk 0:02:59.6]} 2. d4 {[%clk 0:02:58.8]}
2... d5 {[%clk 0:03:00.3]} 3. e5 {[%clk 0:02:59.5]} 3... c5 {[%clk 0:03:00.3]}
4. c3 {[%clk 0:03:00.2]} 4... Nc6 {[%clk 0:02:57.4]} 5. Nf3 {[%clk 0:03:00.8]}
5... Bd7 {[%clk 0:02:56.4]} 6. Na3 {[%clk 0:03:01.3]} 6... cxd4 {[%clk
0:02:39.1]} 7. cxd4 {[%clk 0:03:02.2]} 7... Nge7 {[%clk 0:02:03.5]} 8. Nc2
{[%clk 0:02:59.7]} 8... Nf5 {[%clk 0:02:00.9]} 9. Bd3 {[%clk 0:02:59.3]} 9...
Be7 {[%clk 0:02:00.2]} 10. O-O {[%clk 0:02:58.7]} 10... O-O {[%clk 0:02:00.7]}
11. g4 {[%clk 0:02:58.7]} 11... Nh4 {[%clk 0:01:55.1]} 12. Nxh4 {[%clk
0:02:58.7]} 12... Bxh4 {[%clk 0:01:55.8]} 13. g5 {[%clk 0:02:59.1]} 13... Bxg5
{[%clk 0:01:49.6]} 14. Qh5 {[%clk 0:02:59.2]} 14... h6 {[%clk 0:01:42.4]} 15. f4
{[%clk 0:02:59.7]} 15... Bh4 {[%clk 0:01:16.5]} 16. Be3 {[%clk 0:02:43.5]} 16...
f5 {[%clk 0:01:16.1]} 17. Kh1 {[%clk 0:02:42.5]} 17... Be8 {[%clk 0:01:13.5]}
18. Qf3 {[%clk 0:02:41.7]} 18... Kh7 {[%clk 0:01:09]} 19. Rg1 {[%clk 0:02:41]}
19... Qe7 {[%clk 0:00:55.7]} 20. a3 {[%clk 0:02:33.2]} 20... Qf7 {[%clk
0:00:54.8]} 21. Rg4 {[%clk 0:02:12.9]} 21... Be7 {[%clk 0:00:50.1]} 22. Rag1
{[%clk 0:02:10.6]} 22... Rg8 {[%clk 0:00:50]} 23. Qg2 {[%clk 0:01:51.6]} 23...
Bd8 {[%clk 0:00:39.2]} 24. b4 {[%clk 0:01:47]} 24... Ne7 {[%clk 0:00:29.7]} 25.
Rg3 {[%clk 0:01:31.8]} 25... Ng6 {[%clk 0:00:17.7]} 26. Ne1 {[%clk 0:01:18.9]}
26... Nh4 {[%clk 0:00:17.5]} 27. Qh3 {[%clk 0:01:12.2]} 27... Rc8 {[%clk
0:00:15.7]} 28. Bf2 {[%clk 0:01:06.9]} 28... Qh5 {[%clk 0:00:11.3]} 29. Rg4
{[%clk 0:00:51.3]} 29... Kh8 {[%clk 0:00:03]} 30. R4g3 {[%clk 0:00:20.6]} 30...
Rc3 {[%clk 0:00:02.4]} 31. Bf1 {[%clk 0:00:17.5]} 31... Rxg3 {[%clk 0:00:02.2]}
32. hxg3 {[%clk 0:00:18.1]} 32... Nf3 {[%clk 0:00:02.8]} 33. Nxf3 {[%clk
0:00:17.5]} 33... Qxf3+ {[%clk 0:00:02.9]} 34. Rg2 {[%clk 0:00:16.8]} 34... Bh5
{[%clk 0:00:03]} 35. Kg1 {[%clk 0:00:16.8]} 35... Bg4 {[%clk 0:00:03]} 36. Qh1
{[%clk 0:00:16.5]} 36... Kh7 {[%clk 0:00:03.1]} 37. Rh2 {[%clk 0:00:16.8]} 37...
Qxh1+ {[%clk 0:00:02.8]} 38. Kxh1 {[%clk 0:00:16.1]} 38... Bb6 {[%clk
0:00:03.3]} 39. Kg1 {[%clk 0:00:16.2]} 39... Rc8 {[%clk 0:00:03.9]} 40. Be3
{[%clk 0:00:16.9]} 40... Rc3 {[%clk 0:00:03.7]} 41. Kf2 {[%clk 0:00:16]} 41...
Rxa3 {[%clk 0:00:04.1]} 42. Rh1 {[%clk 0:00:15.6]} 42... Ra2+ {[%clk 0:00:04.1]}
43. Kg1 {[%clk 0:00:15.7]} 43... Rb2 {[%clk 0:00:04.2]} 44. Rh2 {[%clk
0:00:13.4]} 44... Rxb4 {[%clk 0:00:04.3]} 45. Rc2 {[%clk 0:00:13.4]} 45... Bxd4
{[%clk 0:00:03.9]} 46. Bxd4 {[%clk 0:00:13.3]} 46... Rxd4 {[%clk 0:00:04.3]} 47.
Rc7 {[%clk 0:00:14.1]} 47... Rb4 {[%clk 0:00:04.2]} 48. Re7 {[%clk 0:00:14.2]}
48... Rb6 {[%clk 0:00:03.8]} 49. Kf2 {[%clk 0:00:14.1]} 49... a5 {[%clk
0:00:03.2]} 50. Re8 {[%clk 0:00:14.4]} 50... a4 {[%clk 0:00:03.4]} 51. Ra8
{[%clk 0:00:15.1]} 51... Rb2+ {[%clk 0:00:03.5]} 52. Ke3 {[%clk 0:00:14.4]}
52... b5 {[%clk 0:00:03.8]} 53. Ra6 {[%clk 0:00:13.6]} 53... Rb3+ {[%clk
0:00:04.1]} 54. Kd4 {[%clk 0:00:13.3]} 54... a3 {[%clk 0:00:04.4]} 55. Rxe6
{[%clk 0:00:13.7]} 55... Rb4+ {[%clk 0:00:04.6]} 56. Kxd5 {[%clk 0:00:12.9]}
56... Ra4 {[%clk 0:00:03.2]} 57. Bxb5 {[%clk 0:00:11.9]} 57... Ra5 {[%clk
0:00:02.4]} 58. Kc4 {[%clk 0:00:10.6]} 58... a2 {[%clk 0:00:03]} 59. Be8 {[%clk
0:00:11.1]} 59... Ra7 {[%clk 0:00:02.3]} 60. Bg6+ {[%clk 0:00:11.4]} 60... Kh8
{[%clk 0:00:03]} 61. Re8# {[%clk 0:00:12.2]} 1-0